bitfinex-derivatives/quotes_ETHF0:USTF0_20251213
["timestamp","ask_amount","ask_price","bid_price","bid_amount"]
[1765585203747,2.1569036,3089.9,3089.8,1.6275]
[1765585203946,2.8765036,3089.9,3089.8,1.6275]
[1765585204556,2.86180768,3089.9,3089.8,1.6275]
[1765585205551,2.84922043,3089.9,3089.8,1.6275]
[1765585206558,1.4394,3089.9,3089.8,1.6275]
[1765585207455,2.8210754,3089.9,3089.8,1.6275]
[1765585208655,1.4394,3089.9,3089.8,1.6275]
[1765585209358,2.87469749,3089.9,3089.8,1.6275]
[1765585210459,2.84717429,3089.9,3089.8,1.6275]
[1765585211360,2.84717429,3089.9,3089.8,0.9112]
[1765585211859,1.4394,3089.9,3089.8,0.9112]
[1765585212559,2.8508734,3089.9,3089.8,0.9112]
[1765585212862,2.8508734,3089.9,3089.8,0.1618]
[1765585213065,1.4394,3089.9,3089.8,0.1618]
[1765585213359,2.82533247,3089.9,3089.8,0.9112]
[1765585213557,2.82533247,3089.9,3089.8,0.1618]
[1765585213750,2.82533247,3089.9,3089.8,0.9112]
[1765585215068,1.4394,3089.9,3089.8,0.9112]
[1765585215660,1.4394,3089.9,3089.8,1.6275]
[1765585216063,2.85395393,3089.9,3089.8,1.6275]
[1765585216463,2.85597585,3089.9,3089.8,1.6275]
[1765585217260,1.4394,3089.9,3089.8,1.6275]
[1765585218461,2.86356438,3089.9,3089.8,1.6275]
[1765585218761,1.4394,3089.9,3089.8,1.6275]
[1765585218961,2.85835722,3089.9,3089.8,1.6275]
[1765585219462,2.86714878,3089.9,3089.8,1.6275]
[1765585220464,1.4394,3089.9,3089.8,1.6275]
[1765585220768,2.84506146,3089.9,3089.8,1.6275]
[1765585221860,1.4394,3089.9,3089.8,1.6275]
[1765585222459,2.86971055,3089.9,3089.8,1.6275]
[1765585223163,2.86971055,3089.9,3089.8,0.9112]
[1765585223465,2.86971055,3089.9,3089.8,0.1618]
[1765585223653,2.86971055,3089.9,3089.8,0.9271]
[1765585223853,1.4394,3089.9,3089.8,1.6591]
[1765585224257,2.83177288,3089.9,3089.8,1.6591]
[1765585224565,1.4394,3089.9,3089.8,1.6591]
[1765585225467,2.84394992,3089.9,3089.8,1.6591]
[1765585226666,2.8456341,3089.9,3089.8,1.6591]
[1765585226865,1.4394,3089.9,3089.8,1.6591]
[1765585228062,2.85065596,3089.9,3089.8,1.6591]
[1765585228257,1.4394,3089.9,3089.8,1.6591]
[1765585228454,2.84566791,3089.9,3089.8,1.6591]
[1765585228758,2.84566791,3089.9,3089.8,0.9271]
[1765585229065,1.4394,3089.9,3089.8,0.9271]
[1765585229258,2.83709145,3089.9,3089.8,0.9271]
[1765585229454,1.4394,3089.9,3089.8,0.9271]
[1765585229659,1.4394,3089.9,3089.8,1.6591]
[1765585230364,1.4394,3089.9,3089.8,0.1618]
[1765585230564,2.83709145,3089.9,3089.8,0.1618]
[1765585230867,2.83709145,3089.9,3089.8,0.9271]
[1765585231467,1.4394,3089.9,3089.8,0.9271]
[1765585231770,2.82864537,3089.9,3089.8,0.1618]
[1765585233866,2.86422698,3089.9,3089.8,0.1618]
[1765585234068,2.86422698,3089.9,3089.8,0.9271]
[1765585234365,2.86422698,3089.9,3089.8,0.1618]
[1765585234568,1.4394,3089.9,3089.8,0.1618]
[1765585235469,2.86422698,3089.9,3089.8,0.1618]
[1765585236569,1.4394,3089.9,3089.8,0.1618]
[1765585241468,1.4394,3089.9,3089.8,0.9271]
[1765585245577,1.4394,3089.9,3089.8,1.6591]
[1765585247678,1.4394,3089.9,3089.8,0.1618]
[1765585247882,1.433,3089.8,3089.7,0.00485255]
[1765585248067,1.433,3089.2,3089.1,3.2078]
[1765585249469,1.433,3089.1,3089.0,0.00382492]
[1765585260386,1.446,3088.9,3088.8,0.00485255]
[1765585260576,1.446,3088.3,3088.2,3.9137]
[1765585260883,1.446,3088.3,3088.2,4.6342]
[1765585261076,3.2078,3088.9,3088.2,4.88924887]
[1765585261479,3.21142709,3088.9,3088.2,5.05663988]
[1765585261779,3.91952709,3088.9,3088.8,1.4264]
[1765585262088,0.00362709,3088.9,3088.8,1.4264]
[1765585262382,0.00362709,3088.9,3088.8,1.58826]
[1765585263379,3.9159,3089.3,3089.2,1.4264]
[1765585263678,0.71295255,3089.5,3089.4,1.4264]
[1765585263988,0.00485255,3089.5,3089.4,4.6342]
[1765585264384,0.00821524,3089.5,3089.4,4.6342]
[1765585264988,0.00821524,3089.5,3089.4,4.79603]
[1765585274108,3.2078,3090.1,3089.4,4.79603]
[1765585274109,4.6538,3090.1,3090.0,1.8515]
[1765585275199,4.65766486,3090.1,3090.0,1.8515]
[1765585278806,4.65766486,3090.1,3090.0,1.131]
[1765585279008,4.65766486,3090.1,3090.0,0.7059]
[1765585279208,4.65766486,3090.1,3090.0,1.4264]
[1765585279809,4.65766486,3090.1,3090.0,2.02299]
[1765585283310,1.44986486,3090.1,3090.0,2.02299]
[1765585288006,1.44986486,3090.1,3090.0,3.00822154]
[1765585288206,0.71196486,3090.1,3090.0,3.00822154]
[1765585289316,0.71196486,3090.1,3090.0,2.02299]
[1765585289520,1.46096486,3090.1,3090.0,2.02299]
[1765585290008,0.71196486,3090.1,3090.0,2.02299]
[1765585291006,0.00386486,3090.1,3090.0,3.00822154]
[1765585292119,0.00386486,3090.1,3090.0,6.21602154]
[1765585293410,1.47946486,3090.1,3090.0,6.21602154]
[1765585293616,1.47946486,3090.1,3090.0,5.23079]
[1765585297116,0.73046486,3090.1,3090.0,5.23079]
[1765585298822,0.73046486,3090.1,3090.0,2.02299]
[1765585299227,1.47946486,3090.1,3090.0,2.02299]
[1765585300019,1.47946486,3090.1,3090.0,1.30249]
[1765585300217,1.47946486,3090.1,3090.0,2.07609]
[1765585301422,0.73046486,3090.1,3090.0,2.07609]
[1765585302023,1.47946486,3090.1,3090.0,2.07609]
[1765585309534,0.73046486,3090.1,3090.0,2.07609]
[1765585310229,1.47946486,3090.1,3090.0,2.07609]
[1765585312133,0.73046486,3090.1,3090.0,2.07609]
[1765585315341,1.46206486,3090.1,3090.0,2.07609]
[1765585315631,0.73046486,3090.1,3090.0,2.07609]
[1765585316334,0.73046486,3090.1,3089.8,3.2078]
[1765585316335,1.4721,3089.9,3089.8,3.9318]
[1765585316635,1.4721,3089.9,3089.8,3.2078]
[1765585316827,1.4721,3089.9,3089.8,3.9318]
[1765585317222,1.4721,3089.9,3089.8,0.724]
[1765585318833,1.4721,3089.9,3089.8,1.4794]
[1765585319933,1.4721,3089.9,3089.8,0.724]
[1765585320734,0.7405,3089.6,3089.5,3.05183871]
[1765585321936,3.21166486,3090.1,3089.5,3.05183871]
[1765585322234,3.95216486,3090.1,3090.0,1.9275]
[1765585322437,3.95216486,3090.1,3090.0,2.91301871]
[1765585322734,0.00386486,3090.1,3090.0,2.91301871]
[1765585324238,0.74436486,3090.1,3090.0,2.91301871]
[1765585324832,1.47596486,3090.1,3090.0,0.724]
[1765585326940,1.47596486,3090.1,3090.0,1.4794]
[1765585327240,1.47596486,3090.1,3090.0,0.724]
[1765585327443,1.4721,3090.0,3089.9,0.1618]
[1765585327742,1.4721,3090.0,3089.9,0.8858]
[1765585328342,1.4721,3090.0,3089.9,1.6412]
[1765585333244,0.7405,3090.0,3089.9,1.6412]
[1765585333542,0.00386486,3090.1,3090.0,1.9275]
[1765585333842,0.00386486,3090.1,3090.0,2.08929]
[1765585344365,0.00485255,3090.4,3090.3,1.67978]
[1765585344558,0.00485255,3090.4,3090.3,2.66529871]
[1765585344959,0.7615,3091.1,3091.0,1.966]
[1765585345165,4.6801,3091.3,3091.2,1.518]
[1765585345366,4.68425332,3091.3,3091.2,1.52210111]
[1765585353370,4.68425332,3091.3,3091.2,0.78350111]
[1765585364973,1.47645332,3091.3,3091.2,0.78350111]
[1765585367279,1.47645332,3091.3,3091.2,1.52210111]
[1765585367977,1.47645332,3091.3,3091.2,0.78350111]
[1765585368275,0.76565332,3091.3,3091.2,1.52210111]
[1765585368682,1.47645332,3091.3,3091.2,1.52210111]
[1765585372977,0.76565332,3091.3,3091.2,1.52210111]
[1765585373477,0.76565332,3091.3,3091.2,1.68383111]
[1765585373671,0.00415332,3091.3,3091.2,1.68383111]
[1765585375886,3.64531718,3091.6,3091.5,2.08642]
[1765585376387,0.754,3091.6,3091.5,2.08642]
[1765585376780,0.75689397,3091.6,3091.5,2.08642]
[1765585377784,0.00289397,3091.6,3091.5,2.08642]
[1765585380179,0.75689397,3091.6,3091.5,2.08642]
[1765585380374,1.52769397,3091.6,3091.5,2.08642]
[1765585380988,0.75689397,3091.6,3091.5,2.08642]
[1765585381582,1.52769397,3091.6,3091.5,1.31112]
[1765585381882,1.5248,3091.3,3091.2,3.21190111]
[1765585382186,0.417,3091.5,3090.8,3.2078]
[1765585382187,1.5248,3090.9,3090.8,3.2078]
[1765585382688,1.5248,3090.5,3090.4,4.6877]
[1765585383183,1.5248,3090.5,3090.4,4.69090779]
[1765585385487,1.5248,3090.5,3090.4,3.91560779]
[1765585386383,1.5248,3090.5,3090.4,4.69090779]
[1765585389281,1.5248,3090.5,3090.4,3.91560779]
[1765585389885,1.5248,3090.5,3090.4,4.69090779]
[1765585391689,0.754,3090.5,3090.4,4.69090779]
[1765585392789,0.4104,3091.0,3090.4,4.69090779]
[1765585393091,0.754,3090.6,3090.5,1.9247]
[1765585393893,1.5248,3090.6,3090.5,1.9247]
[1765585394597,0.754,3090.6,3090.5,1.9247]
[1765585395495,1.5248,3090.6,3090.5,1.9247]
[1765585395791,0.754,3090.6,3090.5,1.9247]
[1765585396796,1.5248,3090.6,3090.5,1.9247]
[1765585398194,0.754,3090.6,3090.5,1.9247]
[1765585398794,1.5248,3090.6,3090.5,1.9247]
[1765585401995,0.754,3090.6,3090.5,1.9247]
[1765585404592,1.5168,3090.6,3090.5,1.9247]
[1765585411202,0.754,3090.6,3090.5,1.9247]
[1765585411799,1.5168,3090.6,3090.5,1.9247]
[1765585412503,1.5168,3090.6,3090.5,1.1494]
[1765585413009,1.5168,3090.6,3090.5,1.8534]
[1765585414904,1.5168,3090.6,3090.5,1.1494]
[1765585416010,1.5168,3090.6,3090.5,1.8534]
[1765585424024,0.754,3090.6,3090.5,1.8534]
[1765585424825,2.49928781,3090.8,3090.7,1.4189]
[1765585431726,3.2078,3090.9,3090.7,1.4189]
[1765585431727,3.2078,3090.9,3090.8,1.505]
[1765585432130,3.9311,3090.9,3090.8,1.505]
[1765585432331,4.6806,3090.9,3090.8,1.505]
[1765585432630,1.4728,3090.9,3090.8,1.505]
[1765585432831,0.7233,3090.9,3090.8,1.505]
[1765585433425,1.4728,3090.9,3090.8,1.505]
[1765585435336,0.7233,3090.9,3090.8,1.505]
[1765585437641,4.6806,3091.2,3091.1,1.505]
[1765585440046,4.6806,3091.2,3091.1,0.7561]
[1765585440349,1.4728,3090.8,3090.7,1.66676]
[1765585442244,1.4728,3090.8,3090.7,0.16176]
[1765585442747,1.4728,3090.8,3090.7,1.66676]
[1765585443541,1.4728,3090.8,3090.7,0.7561]
[1765585443746,1.4728,3090.6,3090.5,5.1576]
[1765585444450,0.7233,3090.6,3090.5,5.1576]
[1765585447755,1.4728,3091.0,3090.9,0.7561]
[1765585449848,1.4728,3090.6,3090.5,3.6526]
[1765585450151,1.4728,3090.6,3090.5,5.1576]
[1765585453047,1.4728,3090.6,3090.5,4.4087]
[1765585453756,1.4728,3090.6,3090.5,5.1576]
[1765585457156,1.4728,3090.6,3090.5,1.9498]
[1765585465662,0.7233,3090.6,3090.5,1.9498]
[1765585469669,6.34945961,3090.9,3090.8,0.7439]
[1765585471065,4.6088,3090.9,3090.8,1.4459]
[1765585472973,5.3645,3090.9,3090.8,0.7439]
[1765585473269,1.4985,3090.6,3090.5,1.1887]
[1765585473468,1.4985,3090.6,3090.5,0.7439]
[1765585473973,1.4985,3090.6,3090.5,1.4459]
[1765585477975,1.4985,3090.6,3090.5,0.7439]
[1765585478277,1.4985,3090.5,3090.4,0.74710779]
[1765585480891,1.4985,3090.5,3090.4,1.44910779]
[1765585481080,1.4985,3090.5,3090.4,0.74710779]
[1765585484688,1.4985,3090.5,3090.4,0.00320779]
[1765585485185,1.4985,3090.5,3090.4,0.74710779]
[1765585486784,3.866,3090.9,3090.5,0.4557]
[1765585487186,0.7428,3090.6,3090.5,1.9016]
[1765585487383,1.4985,3090.6,3090.5,1.9016]
[1765585500302,0.7428,3090.6,3090.5,1.9016]
[1765585503595,1.8404,3090.5,3090.4,0.00320779]
[1765585503799,1.4168,3090.1,3090.0,0.00485255]
[1765585504106,5.60986392,3090.1,3090.0,0.00485255]
[1765585504300,5.60986392,3090.1,3090.0,0.77465255]
[1765585504602,4.6246,3090.1,3090.0,1.90225255]
[1765585504804,4.6246,3090.1,3090.0,1.90595922]
[1765585504994,4.6246,3090.1,3090.0,1.20005922]
[1765585505197,4.6246,3090.1,3090.0,0.77835922]
[1765585513003,5.61021411,3090.1,3090.0,0.00855922]
[1765585513709,1.4168,3089.5,3089.4,3.9776]
[1765585514509,1.4168,3089.5,3089.4,4.6835]
[1765585514809,1.4168,3089.5,3089.4,4.68721632]
[1765585518707,1.4168,3089.5,3089.4,1.47941632]
[1765585528614,0.7096,3089.5,3089.4,1.47941632]
[1765585528823,1.45395255,3089.8,3089.7,0.7039]
[1765585529814,1.45395255,3089.8,3089.7,1.4687]
[1765585530016,1.45395255,3089.8,3089.7,0.7039]
[1765585530723,1.4491,3089.6,3089.5,1.9238]
[1765585541333,0.7213,3089.6,3089.5,1.9238]
[1765585543933,1.4491,3089.6,3089.5,1.9238]
[1765585545034,0.7213,3089.6,3089.5,1.9238]
[1765585545424,1.4491,3089.6,3089.5,1.9238]
[1765585545828,0.7213,3089.6,3089.5,1.9238]
[1765585546538,1.4491,3089.6,3089.5,1.9238]
[1765585547538,0.7213,3089.6,3089.5,1.9238]
[1765585548738,2.43984118,3089.8,3089.7,1.4687]
[1765585548939,3.42503505,3089.8,3089.7,1.4687]
[1765585550239,2.43984118,3089.8,3089.7,1.4687]
[1765585550933,2.43984118,3089.8,3089.7,0.7039]
[1765585551336,1.5394,3089.6,3089.5,1.9357]
[1765585553439,0.7636,3089.6,3089.5,1.9357]
[1765585575254,2.19414898,3089.6,3089.5,1.9357]
[1765585575555,0.7636,3089.6,3089.5,1.9357]
[1765585576552,2.19414898,3089.6,3089.5,1.9357]
[1765585578561,0.7636,3089.6,3089.5,1.9357]
[1765585578751,2.19351058,3089.6,3089.5,1.9357]
[1765585580559,0.7636,3089.6,3089.5,1.9357]
[1765585580759,2.14844054,3089.6,3089.5,1.9357]
[1765585581163,0.7636,3089.6,3089.5,1.9357]
[1765585581562,2.14844054,3089.6,3089.5,1.9357]
[1765585582262,0.7636,3089.6,3089.5,1.9357]
[1765585582657,2.18133453,3089.6,3089.5,1.9357]
[1765585584565,1.45395255,3089.8,3089.7,1.4467]
[1765585587161,2.87477783,3089.8,3089.7,1.4467]
[1765585587453,1.45395255,3089.8,3089.7,1.4467]
[1765585587653,2.87477783,3089.8,3089.7,1.4467]
[1765585588764,1.45395255,3089.8,3089.7,1.4467]
[1765585590169,2.84369345,3089.8,3089.7,1.4467]
[1765585590667,2.85007971,3089.8,3089.7,1.4467]
[1765585591770,2.85007971,3089.8,3089.7,0.7413]
[1765585592067,1.45395255,3089.8,3089.7,0.7413]
[1765585592372,1.4491,3089.6,3089.5,1.9018]
[1765585593567,2.83581701,3089.6,3089.5,1.9018]
[1765585594668,1.4491,3089.6,3089.5,1.9018]
[1765585594874,2.85703637,3089.6,3089.5,1.9018]
[1765585595067,1.4491,3089.5,3089.4,0.00371632]
[1765585595262,6.71871378,3089.5,3089.4,0.00371632]
[1765585595462,0.7464,3088.6,3088.5,5.0762]
[1765585595770,1.4491,3088.9,3088.8,1.4467]
[1765585595970,2.85281133,3088.9,3088.8,1.4467]
[1765585596173,1.4491,3088.9,3088.8,1.4467]
[1765585596373,1.45248922,3088.9,3088.8,1.44936867]
[1765585596761,2.85620055,3088.9,3088.8,1.44936867]
[1765585597274,2.84934955,3088.9,3088.8,1.44936867]
[1765585598470,1.45248922,3088.9,3088.8,1.44936867]
[1765585598977,2.16695198,3088.9,3088.8,1.44936867]
[1765585599168,1.42055198,3088.9,3088.8,1.44936867]
[1765585599574,2.18427738,3088.9,3088.8,1.44936867]
[1765585600677,0.74978922,3088.9,3088.8,1.44936867]
[1765585600978,2.18260818,3088.9,3088.8,1.44936867]
[1765585601965,2.1495184,3088.9,3088.8,1.44936867]
[1765585602563,0.74978922,3088.9,3088.8,1.44936867]
[1765585602877,2.1495184,3088.9,3088.8,1.44936867]
[1765585603075,0.74978922,3088.9,3088.8,1.44936867]
[1765585605178,2.17235001,3088.9,3088.8,1.44936867]
[1765585605679,0.74978922,3088.9,3088.8,1.44936867]
[1765585605878,2.14810448,3088.9,3088.8,1.44936867]
[1765585606181,2.85080448,3088.9,3088.8,0.74396867]
[1765585606375,1.45248922,3088.9,3088.8,0.74396867]
[1765585606779,2.86327061,3088.9,3088.8,0.74396867]
[1765585607672,2.86542357,3088.9,3088.8,0.74396867]
[1765585608283,2.86542357,3088.9,3088.8,1.44936867]
[1765585608671,1.45248922,3088.9,3088.8,1.44936867]
[1765585608877,2.87092211,3088.9,3088.8,1.44936867]
[1765585610277,1.45248922,3088.9,3088.8,1.44936867]
[1765585610477,2.86544379,3088.9,3088.8,1.44936867]
[1765585611185,1.45248922,3088.9,3088.8,1.44936867]
[1765585611680,2.86544379,3088.9,3088.8,1.44936867]
[1765585612284,2.87353944,3088.9,3088.8,1.44936867]
[1765585612785,2.87891549,3088.9,3088.8,1.44936867]
[1765585612986,2.17621549,3088.9,3088.8,1.44936867]
[1765585613885,2.92321549,3088.9,3088.8,1.44936867]
[1765585614387,2.92321549,3088.9,3088.8,0.74396867]
[1765585614686,1.49678922,3088.9,3088.8,0.74396867]
[1765585614886,2.93000888,3088.9,3088.8,0.74396867]
[1765585615386,2.93000888,3088.9,3088.8,1.44876867]
[1765585615587,1.49678922,3088.9,3088.8,1.44876867]
[1765585616681,2.92851998,3088.9,3088.8,1.44876867]
[1765585617486,1.49678922,3088.9,3088.8,1.44876867]
[1765585617787,2.90567737,3088.9,3088.8,1.44876867]
[1765585618887,1.49678922,3088.9,3088.8,1.44876867]
[1765585619086,2.87857437,3088.9,3088.8,1.44876867]
[1765585620089,2.92379026,3088.9,3088.8,0.74396867]
[1765585621289,2.88212627,3088.9,3088.8,0.00266867]
[1765585621491,1.4494,3088.2,3088.1,3.2078]
[1765585621695,3.82165239,3088.2,3088.1,3.2078]
[1765585622581,3.82165239,3088.2,3088.1,3.21063653]
[1765585622785,2.43584885,3088.2,3088.1,3.21063653]
[1765585623896,3.83258256,3088.2,3088.1,3.21063653]
[1765585624889,2.43584885,3088.2,3088.1,3.92363653]
[1765585625085,3.83325256,3088.2,3088.1,3.92363653]
[1765585625894,2.43584885,3088.2,3088.1,3.92363653]
[1765585626093,3.83325256,3088.2,3088.1,3.92363653]
[1765585626293,2.43584885,3088.2,3088.1,3.92363653]
[1765585626780,3.83497701,3088.2,3088.1,3.92363653]
[1765585627180,3.86837517,3088.2,3088.1,3.92363653]
[1765585627489,7.07617517,3088.2,3088.1,0.00283653]
[1765585627889,7.07617517,3088.2,3088.1,0.71583653]
[1765585628699,7.07617517,3088.2,3088.1,0.00283653]
[1765585628890,7.07477166,3088.2,3088.1,0.00283653]
[1765585629789,5.64364885,3088.2,3088.1,0.00283653]
[1765585629989,7.04568484,3088.2,3088.1,0.00283653]
[1765585630693,4.6572,3088.2,3088.1,0.00283653]
[1765585630898,4.6572,3088.2,3088.1,1.42063653]
[1765585630899,5.31223599,3088.2,3088.1,1.42063653]
[1765585631493,6.05923599,3088.2,3088.1,1.42063653]
[1765585632494,6.09067485,3088.2,3088.1,1.42063653]
[1765585632689,6.09067485,3088.2,3088.1,0.71583653]
[1765585632889,4.6572,3088.2,3088.1,0.71583653]
[1765585633995,4.6572,3088.2,3088.1,0.00283653]
[1765585634196,6.07532521,3088.2,3088.1,0.00283653]
[1765585634395,6.09090307,3088.2,3088.1,0.00283653]
[1765585634990,6.09090307,3088.2,3088.1,0.71583653]
[1765585635189,4.6572,3088.2,3088.1,0.71583653]
[1765585635397,6.04106242,3088.2,3088.1,0.71583653]
[1765585635698,4.6572,3088.2,3088.1,0.71583653]
[1765585635897,6.04106242,3088.2,3088.1,0.71583653]
[1765585636799,4.6572,3088.2,3088.1,0.71583653]
[1765585638298,6.04298548,3088.2,3088.1,0.71583653]
[1765585638889,4.6572,3088.2,3088.1,0.71583653]
[1765585639600,6.0552568,3088.2,3088.1,0.71583653]
[1765585640399,6.08068318,3088.2,3088.1,0.71583653]
[1765585640699,4.6572,3088.2,3088.1,0.71583653]
[1765585640899,6.05712919,3088.2,3088.1,0.71583653]
[1765585641803,4.6572,3088.2,3088.1,0.71583653]
[1765585642101,6.06363071,3088.2,3088.1,0.71583653]
[1765585642900,6.06782778,3088.2,3088.1,0.71583653]
[1765585644002,6.06782778,3088.2,3088.1,1.43533653]
[1765585644206,6.06513972,3088.2,3088.1,0.71583653]
[1765585644803,4.6572,3088.2,3088.1,0.71583653]
[1765585645402,6.06513972,3088.2,3088.1,0.71583653]
[1765585646497,6.08979008,3088.2,3088.1,0.71583653]
[1765585646898,2.88199008,3088.2,3088.1,0.71583653]
[1765585647608,2.8849526,3088.2,3088.1,0.71583653]
[1765585647797,1.4494,3088.2,3088.1,0.71583653]
[1765585648001,1.4494,3088.2,3088.1,0.00283653]
[1765585648799,2.8849526,3088.2,3088.1,0.00283653]
[1765585649005,2.85775305,3088.2,3088.1,0.00283653]
[1765585649904,2.86878911,3088.2,3088.1,0.00283653]
[1765585650205,1.4494,3088.2,3088.1,0.00283653]
[1765585650807,2.86878911,3088.2,3088.1,0.00283653]
[1765585652201,2.85765496,3088.2,3088.1,0.00283653]
[1765585653404,2.84561863,3088.2,3088.1,0.00283653]
[1765585655106,1.4494,3088.2,3088.1,0.00283653]
[1765585655307,2.84381247,3088.2,3088.1,0.00283653]
[1765585656006,3.8306498,3088.2,3088.1,0.00283653]
[1765585656208,3.82822147,3088.2,3088.1,0.00283653]
[1765585657309,2.43623733,3088.2,3088.1,0.00283653]
[1765585660005,3.42289781,3088.2,3088.1,0.00283653]
[1765585666215,6.63069781,3088.2,3088.1,0.00283653]
[1765585669118,10.49669781,3088.2,3088.1,0.00283653]
[1765585670417,10.49679778,3088.2,3088.1,0.00283653]
[1765585676817,11.91932024,3088.2,3088.1,0.00283653]
[1765585677018,1.5074,3087.9,3087.8,0.00323511]
[1765585677213,7.34699778,3087.9,3087.8,0.00323511]
[1765585677917,7.34699778,3087.9,3087.8,0.00684748]
[1765585680628,3.48099778,3087.9,3087.8,0.00684748]
[1765585680825,1.5074,3086.6,3086.5,0.4339]
[1765585681028,3.9515,3087.1,3087.0,1.9068]
[1765585681221,0.9869373,3087.6,3087.0,1.9068]
[1765585681526,0.98382683,3087.6,3087.0,1.9068]
[1765585681717,3.47816413,3087.6,3087.5,0.7343]
[1765585681923,2.49691867,3087.6,3087.5,0.00259262]
[1765585685931,5.70471867,3087.6,3087.5,0.00259262]
[1765585687829,2.49691867,3087.6,3087.5,0.00259262]
[1765585688028,5.70471867,3087.6,3087.5,0.00259262]
[1765585693029,4.71778137,3087.6,3087.5,0.00259262]
[1765585695736,8.58378137,3087.6,3087.5,0.00259262]
[1765585697439,5.37598137,3087.6,3087.5,0.00259262]
[1765585697738,9.57071867,3087.6,3087.5,0.00259262]
[1765585697947,9.57071867,3087.6,3087.5,1.90939262]
[1765585698230,9.57071867,3087.6,3087.5,1.17579262]
[1765585698435,9.57071867,3087.6,3087.5,0.00259262]
[1765585698835,9.57071867,3087.6,3087.5,0.73689262]
[1765585699739,9.57071867,3087.6,3087.5,1.92859262]
[1765585699941,8.58378137,3087.6,3087.5,1.92859262]
[1765585702337,7.82008137,3087.6,3087.5,1.92859262]
[1765585702540,8.56428137,3087.6,3087.5,1.92859262]
[1765585703743,7.82008137,3087.6,3087.5,1.92859262]
[1765585705451,8.56428137,3087.6,3087.5,1.92859262]
[1765585707851,8.56428137,3087.6,3087.5,0.00259262]
[1765585708657,9.55138125,3087.6,3087.5,0.00259262]
[1765585711254,1.4764,3086.9,3086.8,1.483]
[1765585711455,1.4764,3086.6,3086.5,0.4339]
[1765585711653,1.4764,3086.6,3086.5,0.7519]
[1765585711856,1.4764,3086.6,3086.5,1.9474]
[1765585712456,1.4764,3086.6,3086.5,1.95098404]
[1765585712653,2.46349988,3086.6,3086.5,1.95098404]
[1765585715964,1.4764,3086.6,3086.5,1.95098404]
[1765585720867,0.7322,3086.6,3086.5,1.95098404]
[1765585723570,4.19563622,3087.2,3086.5,1.95098404]
[1765585724070,0.7322,3086.6,3086.5,1.95098404]
[1765585733885,4.6847,3086.9,3086.8,1.4973]
[1765585738071,4.6847,3086.9,3086.8,0.7519]
[1765585738684,4.6847,3086.9,3086.8,1.4973]
[1765585739476,3.94,3086.9,3086.8,1.4973]
[1765585739678,4.6847,3086.9,3086.8,1.4973]
[1765585741187,4.6847,3086.9,3086.8,0.7519]
[1765585741588,4.6847,3086.9,3086.8,1.4973]
[1765585742379,5.67256016,3087.3,3087.2,0.7281]
[1765585742579,6.65866974,3087.3,3087.2,0.7281]
[1765585743189,1.4772,3087.1,3087.0,1.9157]
[1765585748084,0.7325,3087.1,3087.0,1.9157]
[1765585748487,1.4772,3087.1,3087.0,1.9157]
[1765585758811,0.7325,3086.6,3086.5,5.14928404]
[1765585759212,2.45446016,3086.8,3086.7,1.4545]
[1765585763916,1.72006016,3086.8,3086.7,1.4545]
[1765585765705,0.7325,3086.8,3086.7,1.4545]
[1765585770220,1.4588,3086.8,3086.7,0.7281]
[1765585770623,1.4588,3086.8,3086.7,1.4686]
[1765585775426,1.4588,3086.8,3086.7,0.7281]
[1765585775724,1.5032,3086.6,3086.5,0.00358404]
[1765585775918,2.49091596,3086.6,3086.5,0.72128404]
[1765585776928,2.49091596,3086.6,3086.5,0.00358404]
[1765585777926,3.47943846,3086.6,3086.5,0.00358404]
[1765585779727,4.46453643,3086.6,3086.5,0.00358404]
[1765585780121,1.5032,3086.1,3086.0,1.8945]
[1765585780422,2.49131923,3086.1,3086.0,0.7177]
[1765585780630,1.5032,3085.9,3085.8,4.666]
[1765585780831,0.00486057,3086.4,3086.3,1.4582]
[1765585781222,0.00486057,3086.4,3086.3,1.46187242]
[1765585782327,0.00486057,3086.4,3086.3,4.66967242]
[1765585800333,4.6788,3087.1,3087.0,1.9515]
[1765585801541,1.471,3086.8,3086.7,1.49796057]
[1765585801739,2.45863735,3086.8,3086.7,0.00486057]
[1765585803044,2.45863735,3086.8,3086.7,0.73276057]
[1765585804545,2.45863735,3086.8,3086.7,0.00486057]
[1765585804744,2.45863735,3086.8,3086.7,0.73276057]
[1765585815955,1.471,3086.8,3086.7,0.73276057]
[1765585816159,1.471,3086.8,3086.7,1.49796057]
[1765585818369,1.471,3086.8,3086.7,0.73276057]
[1765585819469,1.471,3086.8,3086.7,1.49796057]
[1765585831878,0.7075,3086.8,3086.7,1.49796057]
[1765585832566,1.477,3086.8,3086.7,1.49796057]
[1765585834377,1.477,3086.8,3086.7,0.00486057]
[1765585835077,1.477,3086.8,3086.7,0.73716057]
[1765585835272,2.45944771,3086.8,3086.7,0.00486057]
[1765585836172,1.5317,3086.4,3086.3,0.00367242]
[1765585838284,4.7395,3086.4,3086.3,0.00367242]
[1765585838978,5.72060232,3086.4,3086.3,0.00367242]
[1765585839182,4.7395,3086.4,3086.3,0.00367242]
[1765585846975,1.5317,3085.8,3085.7,3.2078]
[1765585847179,3.628,3086.0,3085.0,1.1634]
[1765585847486,1.53656057,3085.8,3085.7,1.4373]
[1765585847983,1.53656057,3085.8,3085.7,0.7323]
[1765585848180,1.53656057,3085.8,3085.7,0.73627719]
[1765585857892,1.53656057,3085.8,3085.7,0.00397719]
[1765585858195,1.53656057,3085.8,3085.7,0.72177719]
[1765585860093,1.53656057,3085.8,3085.7,1.47127719]
[1765585860294,1.53656057,3085.8,3085.7,0.72177719]
[1765585861993,1.4524,3084.9,3084.8,4.6751]
[1765585862292,0.7131,3084.9,3084.8,4.6751]
[1765585862490,3.6278,3085.5,3084.8,4.6751]
[1765585862994,3.63122949,3085.5,3084.8,4.67930215]
[1765585865691,3.92432949,3085.5,3085.4,0.7178]
[1765585865891,1.45582949,3085.5,3085.4,1.4673]
[1765585869700,0.00342949,3085.5,3085.4,1.4673]
[1765585869997,1.45582949,3085.5,3085.4,1.4673]
[1765585871197,0.71652949,3085.5,3085.4,1.4673]
[1765585871397,0.00342949,3085.5,3085.4,1.4673]
[1765585896016,0.00342949,3085.5,3085.4,4.6751]
[1765585897620,0.74552949,3085.5,3085.4,4.6751]